Workbook

Sheet Eingabe
B2: Ermittlung der optimalen Bestellmenge
B4: Bei einem geggebenen Periodenbedarf kann die optimale Bestellmenge, unter Berücksichtigung von Bestellkosten je
B5: Bestellvorgang und Lagerkosten für die Lagerbereitschaft je Stück, ermittelt werden
B7: Die Anzahl der Bestellvorgänge ergibt sich aus der Division des Periodenbedarfs mit den alternativen Bestellmengen.
B8: Die alternativen Bestellmengen werden zur gleichmäßigen Skalierung der X-Achse jeweils um die sechzehntenTeil erhöht.
B9: Die Anzahl der Bestellvorgänge bezieht sich jeweils auf ein Perode. Bestellvorgänge in Dezimalzahlen bedeutetn daher, dass Teile
B10: des Lagerbestandes den Bedarf in anderen Perioden decken.
G15: =D29 -> 1500 | H15: 0 | I15: =D29 -> 1500
G16: =D29 -> 1500 | H16: =D26 -> 708.33 | I16: =D26 -> 708.33
B26: =Berechnungen!E2 -> minimale Gesamtkosten | D26: =Berechnungen!G2 -> 708.33
B29: =Berechnungen!E3 -> Optimale Bestellmenge | D29: =Berechnungen!G3 -> 1500

Sheet Berechnungen
B2: Periodenbedarf/Höchstbestellmenge | D2: 4000 | E2: minimale Gesamtkosten | G2: =MIN(G9:G24) -> 708.33
B3: Bestellkosten je Vorgang | D3: 125 | E3: Optimale Bestellmenge | G3: =VLOOKUP(G2,G9:H24,2,FALSE) -> 1500
B4: Lagerkosten je Stück | D4: 0.25 | E4: Anzahl der Bestellungen | G4: =VLOOKUP(G3,B9:G24,2,FALSE) -> 2.666666667
C6: Anzahl der | D6: Lagerkosten | G6: Gesamt-
B7: Bestellmenge | C7: Bestellungen | D7: je Stück | E7: Bestellkosten | F7: Lagerkosten | G7: kosten
B8: 0
B9: =B24/16 -> 250 | C9: =$D$2/B9 -> 16 | D9: =$D$4 -> 0.25 | E9: =ROUND(C9*$D$3,2) -> 2000 | F9: =ROUND(B9*D9,2) -> 62.5 | G9: =E9+F9 -> 2062.5 | H9: =H24/16 -> 250
B10: =B9+B$9 -> 500 | C10: 8 | D10: 0.25 | E10: =ROUND(C10*$D$3,2) -> 1000 | F10: =ROUND(B10*D10,2) -> 125 | G10: 1125 | H10: =H9+H$9 -> 500
B11: =B10+B$9 -> 750 | C11: 5.333333333 | D11: 0.25 | E11: 666.67 | F11: 187.5 | G11: 854.17 | H11: =H10+H$9 -> 750
B12: 1000 | C12: 4 | D12: 0.25 | E12: 500 | F12: 250 | G12: 750 | H12: 1000
B13: 1250 | C13: 3.2 | D13: 0.25 | E13: 400 | F13: 312.5 | G13: 712.5 | H13: 1250
B14: 1500 | C14: 2.666666667 | D14: 0.25 | E14: 333.33 | F14: 375 | G14: 708.33 | H14: 1500
B15: 1750 | C15: 2.285714286 | D15: 0.25 | E15: 285.71 | F15: 437.5 | G15: 723.21 | H15: 1750
B16: 2000 | C16: 2 | D16: 0.25 | E16: 250 | F16: 500 | G16: 750 | H16: 2000
B17: 2250 | C17: 1.777777778 | D17: 0.25 | E17: 222.22 | F17: 562.5 | G17: 784.72 | H17: 2250
B18: 2500 | C18: 1.6 | D18: 0.25 | E18: 200 | F18: 625 | G18: 825 | H18: 2500
B19: 2750 | C19: 1.454545455 | D19: 0.25 | E19: 181.82 | F19: 687.5 | G19: 869.32 | H19: 2750
B20: 3000 | C20: 1.333333333 | D20: 0.25 | E20: 166.67 | F20: 750 | G20: 916.67 | H20: 3000
B21: 3250 | C21: 1.230769231 | D21: 0.25 | E21: 153.85 | F21: 812.5 | G21: 966.35 | H21: 3250
B22: 3500 | C22: 1.142857143 | D22: 0.25 | E22: 142.86 | F22: 875 | G22: 1017.86 | H22: 3500
B23: 3750 | C23: 1.066666667 | D23: 0.25 | E23: 133.33 | F23: 937.5 | G23: 1070.83 | H23: 3750
B24: =D2 -> 4000 | C24: 1 | D24: 0.25 | E24: 125 | F24: 1000 | G24: 1125 | H24: =D2 -> 4000

Sheet Grafik
